fUSD/lending_fUSD_20250823
["ID","MTS","AMOUNT","RATE_DAILY","PERIOD"]
[381002675,1755932069302,-150.94,0.00012623,2]
[381002676,1755932069312,-82.98191839,0.00012623,2]
[381002677,1755932076207,-222.52808161,0.00012623,2]
[381002678,1755932076239,-11.12383678,0.00012623,2]
[381002679,1755932076253,-197.37616322,0.00012623,2]
[381002680,1755932076263,-25.15191839,0.00012623,2]
[381002681,1755932076284,-188.29808161,0.00012623,2]
[381002682,1755932076294,-20.20191839,0.00012623,2]
[381002683,1755932083851,-94.03,0.00012623,2]
[381002684,1755932083890,-211.94,0.00012623,2]
[381002685,1755932083900,-94.03,0.00012623,2]
[381002686,1755932090920,-183.54,0.00012623,2]
[381002687,1755932090999,-32.92,0.00012623,2]
[381002688,1755932091009,-116.75,0.00012623,2]
[381002689,1755932091018,-66.79,0.00012623,2]
[381002690,1755932098150,-215.76,0.00012623,2]
[381002691,1755932098168,-212.45,0.00012623,2]
[381002692,1755932098178,-3.31,0.00012623,2]
[381002693,1755932098198,-77.14,0.00012623,2]
[381002694,1755932170055,-300.0,0.00012621,2]
[381002696,1755932221390,300.0,0.00012621,2]
[381002697,1755932223671,150.0,0.00012621,2]
[381002698,1755932281860,210.0,0.00012621,2]
[381002700,1755932407578,-47.37616322,0.00012119,2]
[381002701,1755932422752,-85.67424483,0.00012119,2]
[381002704,1755932650622,-24.63383678,0.00011715,2]
[381002705,1755932665289,-27.45575517,0.00011715,2]
[381002707,1755932714456,-102.61959195,0.00011715,2]
[381002708,1755932736266,-8.2608161,0.00011715,2]
[381002709,1755932743881,-49.32,0.00011818,2]
[381002710,1755932757644,-99.15,0.00011818,2]
[381002711,1755932778310,-14.15,0.00011818,2]
[381002712,1755932813058,-2.58,0.00011775,2]
[381002713,1755932817442,162.12657112,0.00020795,30]
[381002715,1755932844382,300.0,0.000137,5]
[381002716,1755932847152,700.0,0.000138,5]
[381002717,1755932848789,1100.0,0.000139,5]
[381002718,1755932850991,1400.0,0.000148,5]
[381002719,1755932852987,1800.0,0.000149,5]
[381002721,1755932931156,-1.39,0.00011775,2]
[381002725,1755933032313,-1234.53,0.00011033,2]
[381002726,1755933032323,-181.81,0.00011775,2]
[381002727,1755933032333,-300.0,0.00011797,2]
[381002728,1755933032343,-1204.81907799,0.00011797,2]
[381002729,1755933032386,-1295.18092201,0.00011797,2]
[381002730,1755933032396,-162.62,0.00011818,2]
[381002731,1755933032406,-310.0,0.00011821,2]
[381002732,1755933032416,-250.0,0.00011821,2]
[381002733,1755933032425,-2500.0,0.0001184,2]
[381002734,1755933032435,-9.6558838,0.0001184,2]
[381002735,1755933032484,-290.3441162,0.0001184,2]
[381002736,1755933032494,-29.94629644,0.00011868,2]
[381002738,1755933032662,-270.05370356,0.00011868,2]
[381002739,1755933032672,-141.6627856,0.00011917,2]
[381002740,1755933032683,-158.3372144,0.00011917,2]
[381002741,1755933032693,-1200.0,0.00011917,2]
[381002742,1755933032702,-302.11,0.00011918,2]
[381002743,1755933032712,-304.81,0.00011918,2]
[381002744,1755933032721,-300.67,0.00011918,2]
[381002745,1755933032731,-189.08751208,0.00011918,2]
[381002746,1755933032740,-303.59,0.00011918,2]
[381002747,1755933032750,-305.47,0.00011918,2]
[381002748,1755933032759,-304.75,0.00011918,2]
[381002749,1755933032768,-213.83,0.00011918,2]
[381002750,1755933032778,-214.37,0.00011918,2]
[381002751,1755933032788,-215.7,0.00011918,2]
[381002752,1755933032798,-250.0,0.00011918,2]
[381002753,1755933032807,-42484.64,0.00011918,2]
[381002754,1755933032816,-215.42,0.00011918,2]
[381002755,1755933032826,-209.69,0.00011918,2]
[381002756,1755933032835,-299.99,0.00011918,2]
[381002757,1755933032845,-305.99,0.00011918,2]
[381002758,1755933032855,-300.87,0.00011919,2]
[381002759,1755933032864,-211.91,0.00011921,2]
[381002760,1755933032874,-209.52,0.00011921,2]
[381002761,1755933032885,-214.51,0.00011921,2]
[381002762,1755933032895,-216.36,0.00011922,2]
[381002763,1755933032904,-213.17,0.00011922,2]
[381002764,1755933032914,-70.33253672,0.00011936,2]
[381002765,1755933032926,-230.43746328,0.00011936,2]
[381002766,1755933032936,-303.61,0.00011945,2]
[381002767,1755933032946,-172.93219222,0.00011973,2]
[381002768,1755933032959,-81.5252445,0.00011998,2]
[381002769,1755933032971,-1799.64754234,0.00011998,2]
[381002770,1755933032984,-277.35679052,0.00011998,2]
[381002771,1755933032996,-721.12765535,0.00011998,2]
[381002772,1755933033006,-160.0,0.00011998,2]
[381002773,1755933033016,-322.6107,0.00011998,2]
[381002774,1755933033026,-151.0,0.00011998,2]
[381002775,1755933033036,-37493.40487437,0.00012,2]
[381002776,1755933033048,-2057.80496434,0.00012,2]
[381002777,1755933033059,-1003.67787669,0.00012,2]
[381002780,1755933038182,-1486.23959742,0.00012,2]
[381002781,1755933038194,-2972.79245647,0.00012,2]
[381002782,1755933038206,-820.666782,0.00012,2]
[381002783,1755933038254,-581.48802495,0.00012,2]
[381002784,1755933038309,-1808.89621362,0.00012,2]
[381002967,1755933040340,-664.4927756,0.000119,2]
[381002969,1755933040350,-1566.30067733,0.00012,2]
[381003053,1755933043214,-242.98488612,0.000119,2]
[381003054,1755933043224,-3546.60251652,0.00012,2]
[381003055,1755933043382,-224031.5328847,0.00012,2]
[381003056,1755933043394,-925.17218764,0.00012,2]
[381003061,1755933046265,-712.95724499,0.00012,2]
[381003062,1755933046428,-368.63334378,0.00012,2]
[381003063,1755933046440,-2600.0005,0.00012,2]
[381003064,1755933046452,-7006.15863914,0.00012,2]
[381003069,1755933287367,-31.98732845,0.00011,2]
[381003070,1755933308448,-189.161005,0.00010999,2]
[381003071,1755933315495,1000.0,0.00021,30]
[381003072,1755933315544,-150.69,0.00010945,2]
[381003073,1755933322947,-191.22201,0.00010945,2]
[381003074,1755933343915,-162.62,0.00010945,2]
[381003075,1755933355473,304.97,0.00021,30]
[381003076,1755933428972,-206.70095976,0.0001089,2]
[381003077,1755933436388,-184.59,0.0001089,2]
[381003078,1755933442528,159988.79357888,0.000287,120]
[381003081,1755933477641,-191.17,0.00010964,2]
[381003084,1755933492400,-158.94,0.00010902,2]
[381003091,1755933701120,-162.97,0.00010544,2]
[381003093,1755933717089,918.40499066,0.00028767,120]
[381003096,1755933748006,-189.161005,0.00010693,2]
[381003097,1755933755760,-191.17,0.00010693,2]
[381003098,1755933769926,-250.0,0.00010555,2]
[381003099,1755933780843,-454.89,0.00010544,2]
[381003102,1755934022369,433.91,0.00010484,2]
[381003103,1755934087495,9117.4345,7.945e-05,2]
[381003106,1755934190546,235.0,0.0001,2]
[381003132,1755934232941,-892.09353004,0.00010693,2]
[381003133,1755934232953,-1006.57188496,0.00010693,2]
[381003134,1755934232963,-300.0,0.00010721,2]
[381003135,1755934232973,-300.0,0.00010748,2]
[381003136,1755934232982,-300.0,0.00010755,2]
[381003137,1755934232991,-250.0,0.00010761,2]
[381003138,1755934233001,-350.86977589,0.00010799,2]
[381003139,1755934233012,-849.13022411,0.00010799,2]
[381003140,1755934233022,-380.41133878,0.00010799,2]
[381003141,1755934233084,-819.58866122,0.00010799,2]
[381003142,1755934233094,-300.0,0.00010799,2]
[381003143,1755934233104,-150.12639623,0.000108,2]
[381003144,1755934233114,-150.0,0.000108,2]
[381003145,1755934233125,-150.0,0.000108,2]
[381003146,1755934233135,-150.0,0.000108,2]
[381003147,1755934233145,-150.0,0.000108,2]
[381003148,1755934233154,-150.0,0.000108,2]
[381003149,1755934233164,-150.0,0.000108,2]
[381003150,1755934233174,-150.0,0.000108,2]
[381003151,1755934233184,-150.0,0.000108,2]
[381003152,1755934233193,-150.0,0.000108,2]
[381003153,1755934233203,-150.0,0.000108,2]
[381003154,1755934233212,-150.0,0.000108,2]
[381003155,1755934233221,-150.0,0.000108,2]
[381003156,1755934233232,-150.0,0.000108,2]
[381003157,1755934233242,-150.0,0.000108,2]
[381003158,1755934233252,-150.0,0.000108,2]
[381003159,1755934233262,-150.0,0.00010886,2]
[381003160,1755934233272,-150.0,0.00010901,2]
[381003161,1755934233281,-412.92,0.00010902,2]
[381003162,1755934233291,-324.31,0.00010902,2]
[381003163,1755934233302,-1918.16,0.00010902,2]
[381003164,1755934233311,-1089.94,0.00010902,2]
[381003165,1755934233322,-150.99,0.00010902,2]
[381003166,1755934233335,-150.0,0.0001095,2]
[381003167,1755934233346,-318.07811998,0.00010962,2]
[381003168,1755934233356,-254.46216879,0.00010962,2]
[381003169,1755934233367,-579.19449744,0.00010962,2]
[381003170,1755934233377,-808.83,0.00010964,2]
[381003171,1755934233387,-21029.29189325,0.00010967,2]
[381003172,1755934233396,-150.0,0.00010971,2]
[381003173,1755934233406,-372.62114567,0.0001099,2]
[381003174,1755934233416,-13135.18576358,0.00011,2]
[381003175,1755934233426,-150.0,0.00011,2]
[381003176,1755934233435,-186.65,0.00011034,2]
[381003177,1755934233445,-176.83,0.00011047,2]
[381003178,1755934233455,-150.0,0.00011057,2]
[381003179,1755934233465,-330.0,0.00011083,2]
[381003180,1755934233474,-150.0,0.000111,2]
[381003181,1755934233484,-150.0,0.000111,2]
[381003182,1755934233494,-150.0,0.000111,2]
[381003183,1755934233504,-150.0,0.000111,2]
[381003184,1755934233514,-150.0,0.000111,2]
[381003185,1755934233524,-150.0,0.000111,2]
[381003186,1755934233534,-150.0,0.00011143,2]
[381003187,1755934233543,-230.0,0.0001118,2]
[381003188,1755934233553,-150.0,0.000112,2]
[381003189,1755934233562,-150.0,0.000112,2]
[381003190,1755934233572,-150.0,0.00011229,2]
[381003191,1755934233582,-150.0,0.0001125,2]
[381003192,1755934233591,-150.0,0.00011314,2]
[381003193,1755934233601,-150.0,0.000114,2]
[381003194,1755934233611,-150.0,0.000114,2]
[381003195,1755934233621,-150.0,0.000114,2]
[381003196,1755934233630,-150.0,0.000114,2]
[381003197,1755934233640,-150.0,0.000114,2]
[381003198,1755934233650,-150.0,0.000114,2]
[381003199,1755934233659,-150.0,0.000114,2]
[381003200,1755934233669,-150.0,0.000114,2]
[381003201,1755934233678,-150.0,0.000114,2]
[381003202,1755934233688,-150.0,0.000114,2]
[381003203,1755934233697,-221.0,0.00011465,2]
[381003204,1755934233706,-150.0,0.00011486,2]
[381003205,1755934233716,-232.0461307,0.00011495,2]
[381003206,1755934233726,-150.0,0.0001155,2]
[381003207,1755934233735,-150.0,0.00011571,2]
[381003208,1755934233744,-150.0,0.000116,2]
[381003209,1755934233754,-150.0,0.000116,2]
[381003210,1755934233764,-278.35,0.00011657,2]
[381003211,1755934233773,-150.0,0.00011657,2]
[381003212,1755934233783,-150.0,0.000117,2]
[381003213,1755934233792,-150.0,0.000117,2]
[381003214,1755934233802,-150.0,0.000117,2]
[381003215,1755934233811,-150.0,0.000117,2]
[381003216,1755934233821,-150.0,0.000117,2]
[381003217,1755934233831,-150.0,0.000117,2]
[381003218,1755934233840,-500.0,0.00011705,2]
[381003219,1755934233850,-150.0,0.00011743,2]
[381003220,1755934233860,-277.35679052,0.00011745,2]
[381003221,1755934233869,-160.0,0.00011745,2]
[381003222,1755934233878,-721.12765535,0.00011745,2]
[381003223,1755934233888,-151.0,0.00011745,2]
[381003224,1755934233898,-151.77329165,0.00011745,2]
[381003225,1755934233908,-5391.81600769,0.00011745,2]
[381003226,1755934233918,-322.6107,0.00011745,2]
[381003227,1755934233927,-2500.0,0.00011763,2]
[381003228,1755934233937,-300.0,0.00011763,2]
[381003229,1755934233947,-300.0,0.00011763,2]
[381003230,1755934233957,-2500.0,0.00011793,2]
[381003231,1755934233966,-300.0,0.00011793,2]
[381003232,1755934233976,-300.0,0.00011793,2]
[381003233,1755934233986,-620.90887685,0.000118,2]
[381003234,1755934233996,-3764.9167,0.000118,2]
[381003235,1755934234006,-150.0,0.000118,2]
[381003236,1755934234016,-534.9549029,0.000118,2]
[381003237,1755934234025,-275.8227,0.000118,2]
[381003238,1755934234035,-2988.6684,0.000118,2]
[381003239,1755934234045,-231.0663,0.000118,2]
[381003240,1755934234055,-2500.0,0.00011822,2]
[381003241,1755934234065,-300.0,0.00011822,2]
[381003242,1755934234075,-250.0,0.00011822,2]
[381003243,1755934234086,-150.0,0.00011829,2]
[381003244,1755934234095,-150.0,0.0001185,2]
[381003245,1755934234104,-300.0,0.00011869,2]
[381003246,1755934234114,-1680.0,0.00011879,2]
[381003247,1755934234122,-151.0,0.000119,2]
[381003248,1755934234132,-151.0,0.000119,2]
[381003249,1755934234142,-318.5653318,0.000119,2]
[381003250,1755934234151,-613.94443764,0.000119,2]
[381003251,1755934234160,-21772.54238017,0.000119,2]
[381003252,1755934234170,-1700.89420263,0.000119,2]
[381003253,1755934234179,-150.0,0.00011914,2]
[381003254,1755934234189,-255.0,0.00011936,2]
[381003255,1755934234198,-211.44,0.00011939,2]
[381003256,1755934234208,-304.32,0.00011939,2]
[381003257,1755934234218,-215.17,0.00011939,2]
[381003258,1755934234229,-208.53,0.00011939,2]
[381003259,1755934234239,-208.28,0.00011939,2]
[381003260,1755934234248,-305.84,0.00011939,2]
[381003261,1755934234258,-209.97,0.00011939,2]
[381003262,1755934234268,-211.15,0.00011939,2]
[381003263,1755934234277,-302.79,0.00011939,2]
[381003264,1755934234287,-215.17,0.00011939,2]
[381003265,1755934234297,-215.55,0.00011939,2]
[381003266,1755934234307,-212.81,0.00011939,2]
[381003267,1755934234316,-300.34,0.00011939,2]
[381003268,1755934234326,-212.12,0.00011939,2]
[381003269,1755934234339,-880.81066434,0.00011962,2]
[381003270,1755934234348,-501.18918948,0.00011973,2]
[381003271,1755934234358,-500.54772724,0.00011973,2]
[381003272,1755934234367,-500.0,0.00011973,2]
[381003273,1755934234376,-501.26738785,0.00011973,2]
[381003274,1755934234386,-500.0,0.00011973,2]
[381003275,1755934234396,-500.0,0.00011973,2]
[381003276,1755934234405,-501.13480535,0.00011973,2]
[381003277,1755934234415,-501.33894569,0.00011973,2]
[381003278,1755934234425,-500.0,0.00011973,2]
[381003279,1755934234434,-160.1002852,0.00011973,2]
[381003280,1755934234443,-151.9869756,0.00011973,2]
[381003281,1755934234453,-500.0,0.00011973,2]
[381003282,1755934234462,-501.57561073,0.00011973,2]
[381003283,1755934234471,-3057.3148235,0.00011986,2]
[381003284,1755934234481,-1572.9054457,0.00011988,2]
[381003285,1755934234490,-1530.7899597,0.00011988,2]
[381003286,1755934234500,-1000.0,0.00011999,2]
[381003287,1755934234509,-1120.48565594,0.00011999,3]
[381003288,1755934234518,-214.9,0.00012,2]
[381003289,1755934234527,-775.27181748,0.00012,2]
[381003290,1755934234535,-97490.29244543,0.00012,2]
[381003291,1755934234549,-83570.82774029,0.00012,2]
[381003292,1755934234560,-7038.51753221,0.00012,2]
[381003293,1755934234587,-2646.71242381,0.00012,2]
[381003294,1755934234598,-2599.03307832,0.00012,2]
[381003295,1755934234695,-659.1032,0.00012,2]
[381003297,1755934238272,-1322.721218,0.00012,2]
[381003298,1755934238394,-3184.36134525,0.00012,2]
[381003406,1755934240333,-523.49052366,0.00011043,2]
[381003407,1755934240345,-168.58950341,0.00011043,2]
[381003408,1755934240355,-153909.2830271,0.00012,2]
[381003409,1755934240366,-2638464.74385166,0.00012,2]
[381003423,1755934243768,-10487.78753408,0.00012,2]
[381003424,1755934243806,-7401.89816913,0.00012,2]
[381003425,1755934243887,-12382.7023929,0.00012,2]
[381003431,1755934246631,-5988.69999998,0.00012,2]
[381003433,1755934246825,-13343.62462878,0.00012,2]
[381003434,1755934246836,-19680.38264687,0.00012,2]
[381003435,1755934246863,-54685.04082171,0.00012,2]
[381003436,1755934246879,-1532.7,0.00012,2]
[381003437,1755934318288,160.0,0.00011783,7]
[381003443,1755934548248,401.62,0.00028767,120]
[381003444,1755934572453,200.0,0.000149,5]
[381003445,1755934594947,150.0,0.00028767,120]
[381003446,1755934609657,242.48,0.00015,10]
[381003447,1755934627790,9191.30941,7.945e-05,2]
[381003448,1755934666701,3000.0,0.0001004,2]
[381003450,1755934713208,-150.69,0.0001066,2]
[381003451,1755934736291,-150.69,0.00010606,2]
[381003452,1755934764762,-353.45356954,0.00010593,2]
[381003453,1755934767150,-249.0,0.00010593,2]
[381003454,1755934771791,168.78577351,0.00028767,120]
[381003455,1755934786655,-191.22201,0.00010593,2]
[381003456,1755934794030,-162.62,0.00010593,2]
[381003457,1755934801663,-158.94,0.00010593,2]
[381003458,1755934808623,-206.70095976,0.00010593,2]
[381003459,1755934815896,-184.59,0.00010593,2]
[381003461,1755934862894,-150.0,0.00010542,2]
[381003463,1755934912462,-162.63876086,0.00010526,2]
[381003464,1755934921031,2000.0,0.00015,5]
[381003466,1755935072046,413.23,0.00028,120]
[381003467,1755935115021,422.34609,0.000105,2]
[381003468,1755935116767,-887.36123914,0.000105,2]
[381003469,1755935120232,-300.0,0.000105,2]
[381003470,1755935129314,-166.66,0.000105,2]
[381003471,1755935132664,-200.32321171,0.000105,2]
[381003472,1755935153539,-189.161005,0.000101,2]
[381003473,1755935156239,-310.79496881,0.00010099,2]
[381003474,1755935159121,-189.20503119,0.00010099,2]
[381003475,1755935159143,-110.79496881,0.000101,2]
[381003476,1755935159648,-191.17,0.000101,2]
[381003477,1755935161354,-245.96770448,0.000101,2]
[381003478,1755935168003,-150.69,0.00010242,3]
[381003479,1755935174142,-222.72132144,0.00010171,2]
[381003480,1755935190977,-77.27867856,0.00010171,2]
[381003481,1755935191002,-46.72,0.00010242,3]
[381003483,1755935254128,400.0,0.000149,5]
[381003484,1755935257955,244.0,9.9e-05,2]
[381003485,1755935269467,3199.51,0.00010181,2]
[381003486,1755935289738,1125.463975,0.0001048,2]
[381003488,1755935318092,3616.63,0.00010167,2]
[381003491,1755935390954,10000.0,0.000105,2]
[381003492,1755935411613,1000.0,0.00010182,2]
[381003493,1755935417998,860.87,0.00010187,2]
[381003494,1755935431561,-162.63876084,0.00010533,2]
[381003495,1755935431571,-300.0,0.00010546,2]
[381003496,1755935431581,-488.14507991,0.0001056,2]
[381003497,1755935431592,-11.85492009,0.0001056,2]
[381003498,1755935431601,-500.0,0.0001056,2]
[381003499,1755935431611,-243.108427,0.0001056,2]
[381003500,1755935431652,-2.85927748,0.0001056,2]
[381003501,1755935431663,-310.0,0.00010561,2]
[381003502,1755935431676,-250.0,0.00010561,2]
[381003503,1755935431686,-708.7234607,0.00010593,2]
[381003504,1755935431696,-99.31,0.0001066,2]
[381003505,1755935431707,-180.28,0.0001071,2]
[381003506,1755935431716,-265.0,0.00010799,2]
[381003507,1755935431725,-1200.0,0.00010799,2]
[381003508,1755935431734,-150.0,0.000108,2]
[381003509,1755935431743,-150.0,0.000108,2]
[381003510,1755935431754,-150.0,0.000108,2]
[381003511,1755935431764,-150.0,0.000108,2]
[381003512,1755935431773,-150.14150602,0.000108,2]
[381003513,1755935431783,-150.0,0.000108,2]
[381003514,1755935431793,-150.0,0.000108,2]
[381003515,1755935431803,-150.21988288,0.000108,2]
[381003516,1755935431812,-150.0,0.000108,2]
[381003517,1755935431822,-150.0,0.000108,2]
[381003518,1755935431831,-150.0,0.000108,2]
[381003519,1755935431841,-150.0,0.000108,2]
[381003520,1755935431852,-150.0,0.00010824,2]
[381003521,1755935431861,-150.99,0.00010824,2]
[381003523,1755935431871,-150.0,0.00010838,2]
[381003525,1755935431880,-150.0,0.00010847,2]
[381003526,1755935431890,-150.0,0.0001086,2]
[381003527,1755935431900,-150.0,0.00010867,2]
[381003528,1755935431910,-150.0,0.00010871,2]
[381003529,1755935431919,-150.0,0.00010871,2]
[381003530,1755935431928,-150.0,0.00010875,2]
[381003531,1755935431938,-150.0,0.00010875,2]
[381003532,1755935431947,-150.0,0.00010894,2]
[381003533,1755935431957,-551.22681789,0.00010902,2]
[381003534,1755935432012,-201.63174821,0.00010902,2]
[381003535,1755935432022,-225.0,0.00010902,2]
[381003536,1755935432032,-150.0,0.00010909,2]
[381003538,1755935432042,-150.0,0.00010913,2]
[381003539,1755935432052,-150.0,0.00010918,2]
[381003540,1755935432062,-150.0,0.0001092,2]
[381003541,1755935432071,-150.0,0.00010933,2]
[381003542,1755935432081,-150.0,0.00010941,2]
[381003543,1755935432091,-150.0,0.00010941,2]
[381003544,1755935432100,-150.0,0.0001095,2]
[381003545,1755935432109,-150.0,0.0001095,2]
[381003546,1755935432119,-150.0,0.00010965,2]
[381003547,1755935432129,-150.0,0.00010965,2]
[381003548,1755935432139,-150.0,0.0001098,2]
[381003549,1755935432150,-150.0,0.00010988,2]
[381003550,1755935432160,-150.0,0.00010988,2]
[381003551,1755935432170,-150.0,0.00011,2]
[381003552,1755935432180,-150.0,0.00011,2]
[381003553,1755935432189,-27286.21,0.00011,2]
[381003554,1755935432200,-166.66,0.00011002,2]
[381003555,1755935432210,-150.0,0.00011012,2]
[381003556,1755935432219,-150.0,0.00011012,2]
[381003557,1755935432229,-150.0,0.00011018,2]
[381003558,1755935432238,-150.0,0.00011025,2]
[381003559,1755935432248,-150.0,0.00011025,2]
[381003560,1755935432258,-150.0,0.00011035,2]
[381003561,1755935432267,-150.0,0.0001104,2]
[381003562,1755935432277,-150.0,0.00011059,2]
[381003563,1755935432287,-150.0,0.00011063,2]
[381003564,1755935432296,-150.0,0.00011067,2]
[381003565,1755935432306,-239.0,0.0001108,2]
[381003566,1755935432315,-150.0,0.00011082,2]
[381003567,1755935432325,-150.0,0.00011082,2]
[381003568,1755935432334,-150.0,0.000111,2]
[381003569,1755935432345,-150.0,0.000111,2]
[381003570,1755935432354,-150.0,0.000111,2]
[381003571,1755935432364,-150.0,0.00011106,2]
[381003572,1755935432374,-250.0,0.0001111,2]
[381003573,1755935432384,-2500.0,0.0001111,2]
[381003574,1755935432394,-203.0,0.0001111,2]
[381003575,1755935432405,-300.0,0.0001111,2]
[381003576,1755935432415,-150.0,0.00011127,2]
[381003577,1755935432424,-150.0,0.00011129,2]
[381003578,1755935432434,-150.0,0.00011133,2]
[381003579,1755935432444,-150.0,0.00011138,2]
[381003580,1755935432454,-638.84,0.00011143,2]
[381003581,1755935432464,-314.89,0.0001115,2]
[381003582,1755935432474,-150.0,0.00011153,2]
[381003583,1755935432483,-150.0,0.00011153,2]
[381003584,1755935432493,-150.0,0.0001116,2]
[381003585,1755935432503,-150.0,0.00011175,2]
[381003586,1755935432513,-150.0,0.00011175,2]
[381003587,1755935432523,-150.0,0.00011176,2]
[381003588,1755935432532,-150.0,0.000112,2]
[381003589,1755935432542,-150.0,0.000112,2]
[381003590,1755935432551,-150.0,0.000112,2]
[381003592,1755935432562,-150.0,0.00011213,2]
[381003594,1755935432572,-150.0,0.0001122,2]
[381003596,1755935432581,-150.0,0.00011224,2]
[381003598,1755935432591,-150.0,0.00011224,2]
[381003600,1755935432600,-150.0,0.00011236,2]
[381003602,1755935432609,-150.0,0.00011247,2]
[381003604,1755935432619,-150.0,0.0001125,2]
[381003606,1755935432629,-150.0,0.0001125,2]
[381003608,1755935432638,-150.0,0.00011267,2]
[381003610,1755935432648,-150.0,0.00011271,2]
[381003612,1755935432659,-150.0,0.0001128,2]
[381003614,1755935432672,-150.0,0.00011288,2]
[381003616,1755935432681,-150.0,0.00011294,2]
[381003617,1755935432691,-150.0,0.00011294,2]
[381003618,1755935432700,-400.0,0.000113,4]
[381003619,1755935432711,-162.63876084,0.00011312,2]
[381003620,1755935432720,-150.0,0.00011318,2]
[381003621,1755935432730,-150.0,0.00011325,2]
[381003622,1755935432741,-150.0,0.00011325,2]
[381003623,1755935432751,-150.0,0.00011333,2]
[381003624,1755935432760,-150.0,0.0001134,2]
[381003625,1755935432770,-150.0,0.00011341,2]
[381003626,1755935432779,-150.0,0.00011345,2]
[381003627,1755935432790,-150.0,0.00011363,2]
[381003628,1755935432800,-150.0,0.00011365,2]
[381003629,1755935432810,-150.0,0.00011365,2]
[381003630,1755935432819,-150.0,0.00011388,2]
[381003631,1755935432830,-150.0,0.000114,2]
[381003632,1755935432840,-150.0,0.000114,2]
[381003633,1755935432850,-150.0,0.000114,2]
[381003634,1755935432860,-150.0,0.000114,2]
[381003635,1755935432870,-150.0,0.000114,2]
[381003636,1755935432879,-150.0,0.000114,2]
[381003637,1755935432889,-800.0,0.000114,4]
[381003638,1755935432899,-1256.56950601,0.0001141,2]
[381003639,1755935432915,-1743.43049399,0.0001141,2]
[381003640,1755935432926,-150.0,0.00011412,2]
[381003641,1755935432935,-150.0,0.00011435,2]
[381003642,1755935432945,-150.0,0.00011435,2]
[381003643,1755935432955,-150.0,0.00011438,2]
[381003644,1755935432965,-150.0,0.00011455,2]
[381003645,1755935432975,-1000.0,0.00011455,2]
[381003646,1755935432986,-150.0,0.00011459,2]
[381003647,1755935432995,-150.0,0.0001146,2]
[381003648,1755935433005,-150.0,0.00011467,2]
[381003649,1755935433015,-150.0,0.00011475,2]
[381003650,1755935433024,-150.0,0.00011475,2]
[381003651,1755935433034,-150.0,0.00011482,2]
[381003652,1755935433045,-629.62952908,0.000115,4]
[381003653,1755935433057,-570.37047092,0.000115,4]
[381003654,1755935433067,-150.0,0.00011506,2]
[381003655,1755935433076,-64.95022908,0.00011506,2]
[381003659,1755935437487,-282.7516475,0.00010901,2]
[381003660,1755935437498,-256.94724786,0.00010901,2]
[381003661,1755935437623,-217.1608292,0.00010901,2]
[381003662,1755935437634,-178.12351815,0.00010901,2]